bitfinex/quotes_BTCUSD_20250127
["timestamp","ask_amount","ask_price","bid_price","bid_amount"]
[1737953722026,0.50680626,100510.0,100500.0,1.63548569]
[1737953722202,0.50680626,100510.0,100500.0,1.68761803]
[1737953722557,0.50680626,100510.0,100500.0,0.82561803]
[1737953722756,0.48690726,100510.0,100500.0,0.82561803]
[1737953723045,0.3769935,100510.0,100500.0,0.82761803]
[1737953723253,0.3570945,100510.0,100500.0,0.83261803]
[1737953725531,0.3570945,100510.0,100500.0,0.58367688]
[1737953725758,0.3570945,100510.0,100500.0,0.61571689]
[1737953725928,0.3570945,100510.0,100500.0,0.74158569]
[1737953726134,0.3570945,100510.0,100500.0,0.77067085]
[1737953726562,0.3570945,100510.0,100500.0,0.79869303]
[1737953728535,0.3570945,100510.0,100500.0,0.65282423]
[1737953728680,0.3570945,100510.0,100500.0,0.61571689]
[1737953729693,0.3570945,100510.0,100500.0,0.74158569]
[1737953729889,0.3570945,100510.0,100500.0,0.61571689]
[1737953730102,0.3570945,100510.0,100500.0,0.74158569]
[1737953731798,0.2215995,100510.0,100500.0,0.78048569]
[1737953732124,0.11991594,100510.0,100500.0,0.78048569]
[1737953732743,0.08131594,100510.0,100500.0,0.77848569]
[1737953733150,3e-07,100520.0,100510.0,0.20427801]
[1737953733457,3e-07,100520.0,100510.0,0.60840495]
[1737953734041,0.4974403,100520.0,100510.0,0.58840495]
[1737953734238,0.4974403,100520.0,100510.0,0.60840495]
[1737953734559,0.49976332,100520.0,100510.0,0.60840495]
[1737953735558,0.49976332,100520.0,100510.0,0.61040495]
[1737953735961,0.49976332,100520.0,100510.0,0.64930495]
[1737953736166,0.49976332,100520.0,100510.0,0.65230495]
[1737953736570,0.49976332,100520.0,100510.0,0.66237276]
[1737953736991,0.47986632,100520.0,100510.0,0.66037276]
[1737953737196,0.30569379,100520.0,100510.0,0.66337276]
[1737953737977,0.24452093,100520.0,100510.0,0.66337276]
[1737953738187,0.22462393,100520.0,100510.0,0.66337276]
[1737953738593,0.18482993,100520.0,100510.0,0.66037276]
[1737953738931,0.18250691,100520.0,100510.0,0.66737276]
[1737953739133,0.14271291,100520.0,100510.0,0.66737276]
[1737953739975,0.14505653,100520.0,100510.0,0.62847276]
[1737953740136,0.14505653,100520.0,100510.0,0.60847276]
[1737953740547,0.16359653,100520.0,100510.0,0.60847276]
[1737953742843,0.16359653,100520.0,100510.0,0.62847276]
[1737953743679,0.12380253,100520.0,100510.0,0.62847276]
[1737953743885,0.08166491,100520.0,100510.0,0.62847276]
[1737953744245,0.08166491,100520.0,100510.0,0.64854636]
[1737953744383,0.06176791,100520.0,100510.0,0.64854636]
[1737953744588,0.06176791,100520.0,100510.0,0.62854636]
[1737953744784,0.06176791,100520.0,100510.0,0.60554636]
[1737953744987,0.06190931,100520.0,100510.0,0.5625955]
[1737953745194,0.14615293,100520.0,100510.0,0.43876671]
[1737953745787,0.19555293,100520.0,100510.0,0.28876671]
[1737953746024,0.19555293,100520.0,100510.0,0.19141942]
[1737953746229,0.19555293,100520.0,100510.0,0.16434582]
[1737953746636,0.19555293,100520.0,100510.0,0.15527801]
[1737953746891,0.19555293,100520.0,100510.0,0.15727801]
[1737953748567,0.19555293,100520.0,100510.0,0.15127801]
[1737953748778,0.19655293,100520.0,100510.0,0.15127801]
[1737953748980,0.29655293,100520.0,100510.0,0.15127801]
[1737953750368,0.54390022,100520.0,100510.0,0.15127801]
[1737953750831,0.55294022,100520.0,100510.0,0.149238]
[1737953751069,0.3261,100510.0,100500.0,0.15158995]
[1737953751275,0.4852152,100510.0,100500.0,0.14954994]
[1737953751486,0.4852152,100510.0,100500.0,0.00233695]
[1737953751487,0.47034718,100510.0,100500.0,0.00233695]
[1737953752345,0.47134718,100510.0,100500.0,0.00233695]
[1737953752758,0.47034718,100510.0,100500.0,0.00233695]
[1737953752955,0.3261,100500.0,100490.0,0.19901]
[1737953753207,0.3261,100500.0,100480.0,0.149273]
[1737953753208,0.1261,100490.0,100480.0,0.149273]
[1737953753426,0.2666752,100490.0,100480.0,0.14942134]
[1737953753663,0.26897594,100490.0,100480.0,0.14942134]
[1737953754069,0.51897594,100490.0,100480.0,0.00014834]
[1737953754480,0.1261,100470.0,100460.0,0.28815026]
[1737953754683,0.23263593,100470.0,100460.0,0.28815026]
[1737953754901,0.31361141,100470.0,100460.0,0.28815026]
[1737953755115,0.30457141,100470.0,100460.0,0.41401906]
[1737953755978,0.32311141,100470.0,100460.0,0.3249388]
[1737953756594,0.32311141,100470.0,100460.0,0.3269388]
[1737953756799,0.32311141,100470.0,100460.0,0.3279388]
[1737953757126,0.4204587,100470.0,100460.0,0.20207]
[1737953757574,0.3204587,100470.0,100460.0,0.20207]
[1737953757771,0.3204587,100470.0,100460.0,0.003]
[1737953758303,0.4704587,100470.0,100460.0,0.001]
[1737953758509,0.3261,100460.0,100450.0,0.348404]
[1737953758771,0.4852152,100460.0,100450.0,0.199087]
[1737953758978,0.2261,100450.0,100440.0,0.14962815]
[1737953759184,0.32344729,100450.0,100440.0,0.14962815]
[1737953759387,0.3689202,100450.0,100440.0,0.14962815]
[1737953760860,0.3874602,100450.0,100440.0,0.14962815]
[1737953761085,0.3874602,100450.0,100440.0,0.27549695]
[1737953761698,0.3874602,100450.0,100440.0,0.14962815]
[1737953762058,0.3874602,100450.0,100440.0,0.27549695]
[1737953762572,0.19011291,100450.0,100440.0,0.40136575]
[1737953762978,0.19111291,100450.0,100440.0,0.27549695]
[1737953763200,0.19511291,100450.0,100440.0,0.40136575]
[1737953763360,0.19411291,100450.0,100440.0,0.27549695]
[1737953763559,0.19011291,100450.0,100440.0,0.27549695]
[1737953763776,0.19011291,100450.0,100440.0,0.40136575]
[1737953764335,0.19011291,100450.0,100440.0,0.27549695]
[1737953764977,0.29111291,100450.0,100440.0,0.27549695]
[1737953765383,0.3874602,100450.0,100440.0,0.27549695]
[1737953766423,0.29011291,100450.0,100440.0,0.40136575]
[1737953766665,0.19511291,100450.0,100440.0,0.40136575]
[1737953766867,0.11741291,100450.0,100440.0,0.40136575]
[1737953767886,0.11641291,100450.0,100440.0,0.40136575]
[1737953768190,0.11241291,100450.0,100440.0,0.40136575]
[1737953768395,0.11341291,100450.0,100440.0,0.40136575]
[1737953768818,0.11641291,100450.0,100440.0,0.40136575]
[1737953769018,0.06801291,100450.0,100440.0,0.40136575]
[1737953769196,0.06801291,100450.0,100440.0,0.40236575]
[1737953769456,0.06401291,100450.0,100440.0,0.40236575]
[1737953769655,0.06401291,100450.0,100440.0,0.40536575]
[1737953770390,0.0783,100460.0,100440.0,0.40536575]
[1737953770662,0.0783,100460.0,100450.0,0.2751968]
[1737953770827,0.57606,100460.0,100450.0,0.2751968]
[1737953773520,0.5946,100460.0,100450.0,0.2751968]
[1737953773733,0.5163,100460.0,100450.0,0.8167968]
[1737953774785,0.6163,100460.0,100450.0,0.8167968]
[1737953775606,0.6163,100460.0,100450.0,0.8197968]
[1737953775934,0.6163,100460.0,100450.0,0.8167968]
[1737953778877,0.6163,100460.0,100450.0,0.690928]
[1737953779067,0.6163,100460.0,100450.0,0.149328]
[1737953779280,0.6163,100460.0,100450.0,0.2751968]
[1737953780199,0.6163,100460.0,100450.0,0.149328]
[1737953780609,0.6163,100460.0,100450.0,0.2751968]
[1737953781363,0.6163,100460.0,100450.0,0.27549395]
[1737953781591,0.5164415,100460.0,100450.0,0.27549395]
[1737953782670,0.5164415,100460.0,100450.0,0.30644144]
[1737953783118,0.5164415,100460.0,100450.0,0.18057264]
[1737953783655,0.5164415,100460.0,100450.0,0.30644144]
[1737953784140,0.5164415,100460.0,100450.0,0.42678873]
[1737953784338,0.5164415,100460.0,100450.0,0.43678873]
[1737953785079,0.4169015,100460.0,100450.0,1.46878873]
[1737953785909,0.4169015,100460.0,100450.0,1.47178873]
[1737953786111,0.3770855,100460.0,100450.0,1.47178873]
[1737953786322,0.3770855,100460.0,100450.0,1.47278873]
[1737953787291,0.3571775,100460.0,100450.0,1.47278873]
[1737953787493,0.3173615,100460.0,100450.0,1.47278873]
[1737953787908,0.3173615,100460.0,100450.0,1.44278873]
[1737953788259,0.3173615,100460.0,100450.0,1.45278873]
[1737953789874,0.3173615,100460.0,100450.0,1.49168873]
[1737953790084,0.07885283,100460.0,100450.0,1.63755753]
[1737953790302,0.01468187,100460.0,100450.0,1.64005753]
[1737953790716,0.00014864,100470.0,100460.0,0.202313]
[1737953791074,0.00014864,100470.0,100460.0,0.58234538]
[1737953791275,6.4e-07,100470.0,100460.0,0.58234538]
[1737953791693,0.0001415,100480.0,100470.0,0.203]
[1737953791694,1.4e-07,100480.0,100470.0,0.203]
[1737953791901,1.4e-07,100480.0,100470.0,0.73233038]
[1737953792102,7.1e-07,100480.0,100470.0,0.60646158]
[1737953793690,7.1e-07,100480.0,100470.0,0.73433038]
[1737953794637,7.1e-07,100480.0,100470.0,0.73933038]
[1737953794865,2.1e-07,100480.0,100470.0,0.62320344]
[1737953795061,2.1e-07,100480.0,100470.0,0.61320344]
[1737953795290,2.1e-07,100480.0,100470.0,0.62320344]
[1737953795775,2.1e-07,100480.0,100470.0,0.74907224]
[1737953796205,0.0129,100500.0,100490.0,0.319268]
[1737953796424,0.0001414,100520.0,100510.0,0.149238]
[1737953796682,0.00029017,100520.0,100510.0,0.39545409]
[1737953796890,0.49773017,100520.0,100510.0,0.39545409]
[1737953797771,0.49773017,100520.0,100510.0,0.40645409]
[1737953797934,0.51627017,100520.0,100510.0,0.40645409]
[1737953799880,0.51627017,100520.0,100510.0,1.26845409]
[1737953800282,0.51627017,100520.0,100510.0,1.28793998]
[1737953800860,0.51627017,100520.0,100510.0,1.43793998]
[1737953802059,0.51627017,100520.0,100510.0,1.30759269]
[1737953802394,0.51627017,100520.0,100510.0,1.31758465]
[1737953804590,0.59157017,100520.0,100510.0,1.16758465]
[1737953805002,0.64057017,100520.0,100510.0,1.16758465]
[1737953805436,0.74057017,100520.0,100510.0,1.02222996]
[1737953805643,0.83791746,100520.0,100510.0,0.149238]
[1737953806086,0.3243,100510.0,100500.0,0.397978]
[1737953806289,0.91908729,100510.0,100500.0,0.397978]
[1737953806463,1.02042729,100510.0,100500.0,0.198988]
[1737953806681,0.2243,100500.0,100490.0,0.199012]
[1737953806886,1.06908729,100500.0,100490.0,0.199012]
[1737953807117,0.96908729,100500.0,100480.0,0.48713626]
[1737953807321,0.23064729,100490.0,100480.0,0.48713826]
[1737953807525,0.72808729,100490.0,100480.0,0.48713826]
[1737953807954,0.89662729,100490.0,100480.0,0.398058]
[1737953809157,0.89962729,100490.0,100480.0,0.398058]
[1737953809913,0.90662729,100490.0,100480.0,0.399058]
[1737953810343,0.90662729,100490.0,100480.0,0.001]
[1737953810551,0.90662729,100490.0,100480.0,0.150283]
[1737953811090,1.00662729,100490.0,100480.0,0.150283]
[1737953811766,0.90662729,100490.0,100480.0,0.150283]
[1737953812173,1.00662729,100490.0,100480.0,0.2761518]
[1737953812344,1.00662729,100490.0,100480.0,0.150283]
[1737953814005,0.99762729,100490.0,100480.0,0.150283]
[1737953814228,1.00662729,100490.0,100480.0,0.150283]
[1737953814447,0.90028,100490.0,100480.0,0.2761518]
[1737953814651,0.65028,100490.0,100480.0,0.2761518]
[1737953817367,0.74762729,100490.0,100480.0,0.150283]
[1737953818069,0.74762729,100490.0,100480.0,0.15057994]
[1737953818223,0.89762729,100490.0,100480.0,0.15057994]
[1737953818630,0.99762729,100490.0,100480.0,0.15057994]
[1737953818862,0.99762729,100490.0,100480.0,0.27644874]
[1737953819426,1.09762729,100490.0,100480.0,0.27644874]
[1737953820336,0.80028,100490.0,100480.0,0.27644874]
[1737953821047,0.65028,100490.0,100480.0,0.27644874]
[1737953821887,0.52598,100490.0,100480.0,0.27644874]
[1737953822556,0.52598,100490.0,100480.0,0.39679603]
[1737953822775,0.42347,100490.0,100480.0,0.67266483]
[1737953822973,0.41647,100490.0,100480.0,0.67166483]
[1737953823178,0.31796,100490.0,100480.0,0.67166483]
[1737953823314,0.31796,100490.0,100480.0,1.22326483]
[1737953823516,0.29796,100490.0,100480.0,1.22326483]
[1737953823719,0.29796,100490.0,100480.0,1.24326483]
[1737953824062,0.277058,100490.0,100480.0,1.61421883]
[1737953824280,0.217352,100490.0,100480.0,1.58586883]
[1737953824495,0.16065,100490.0,100480.0,1.58586883]
[1737953824721,0.16065,100490.0,100480.0,1.46518631]
[1737953824949,0.15965,100490.0,100480.0,1.39164631]
[1737953825153,0.080042,100490.0,100480.0,0.71657231]
[1737953825354,0.06014,100490.0,100480.0,0.73833977]
[1737953826161,0.000434,100490.0,100480.0,0.73833977]
[1737953826324,1e-06,100490.0,100480.0,0.73833977]
[1737953827506,1e-06,100490.0,100480.0,1.16844077]
[1737953827710,0.0329414,100510.0,100490.0,0.183]
[1737953827892,0.0329414,100510.0,100500.0,0.52133789]
[1737953828045,0.0001414,100510.0,100500.0,0.52133789]
[1737953828977,0.0011414,100510.0,100500.0,0.52133789]
[1737953829176,4e-07,100510.0,100500.0,1.55333789]
[1737953829385,4e-07,100510.0,100500.0,1.56333789]
[1737953830033,0.00029017,100520.0,100510.0,0.149238]
[1737953830034,0.00025057,100520.0,100510.0,0.149238]
[1737953830240,0.00025057,100520.0,100510.0,0.37245409]
[1737953830444,0.49769057,100520.0,100510.0,0.54545409]
[1737953830659,0.47779357,100520.0,100510.0,0.55545409]
[1737953830859,0.47779357,100520.0,100510.0,0.54545409]
[1737953831640,0.47779357,100520.0,100510.0,0.55645409]
[1737953832000,0.47779357,100520.0,100510.0,0.52345409]
[1737953832224,0.47779357,100520.0,100510.0,0.52245409]
[1737953832642,0.47779357,100520.0,100510.0,1.08705409]
[1737953832848,0.37830857,100520.0,100510.0,1.1065537]
[1737953833062,0.35841157,100520.0,100510.0,1.1065537]
[1737953833192,0.29872057,100520.0,100510.0,1.1095537]
[1737953833597,0.29872057,100520.0,100510.0,1.1065537]
[1737953834223,0.29872057,100520.0,100510.0,1.1085537]
[1737953834553,0.29872057,100520.0,100510.0,1.12150835]
[1737953834778,0.29872057,100520.0,100510.0,1.11950835]
[1737953835085,0.29872057,100520.0,100510.0,1.12150835]
[1737953835648,0.29872057,100520.0,100510.0,1.11950835]
[1737953835850,0.19785457,100520.0,100510.0,0.77267715]
[1737953836055,0.15806057,100520.0,100510.0,0.77467715]
[1737953836254,0.09837557,100520.0,100510.0,0.76467715]
[1737953836454,0.09837557,100520.0,100510.0,0.73277715]
[1737953836680,0.00029736,100530.0,100520.0,0.192224]
[1737953836886,0.00029736,100530.0,100520.0,1.40330889]
[1737953837114,3.6e-07,100530.0,100520.0,1.40330889]
[1737953837260,3.6e-07,100530.0,100520.0,1.38330889]
[1737953837479,3.6e-07,100530.0,100520.0,1.40330889]
[1737953838057,3.6e-07,100530.0,100520.0,1.40730889]
[1737953838264,3.6e-07,100530.0,100520.0,1.41730889]
[1737953838460,3.6e-07,100530.0,100520.0,1.41930889]
[1737953839451,0.15436781,100550.0,100540.0,0.149194]
[1737953839651,0.15436781,100550.0,100540.0,0.37241009]
[1737953840696,0.10886781,100550.0,100540.0,0.37241009]
[1737953840906,0.11086781,100550.0,100540.0,0.37241009]
[1737953841059,0.10886781,100550.0,100540.0,0.37241009]
[1737953841257,0.10390781,100550.0,100540.0,0.37241009]
[1737953841465,0.10390781,100550.0,100540.0,0.91601009]
[1737953843781,0.10404931,100550.0,100540.0,0.91601009]
[1737953844422,0.10404931,100550.0,100540.0,0.8186628]
[1737953844612,0.15384931,100550.0,100540.0,0.692794]
[1737953844752,0.65113931,100550.0,100540.0,0.692794]
[1737953845158,0.65113931,100550.0,100540.0,0.691794]
[1737953846331,0.65113931,100550.0,100540.0,0.690794]
[1737953846757,0.8494866,100550.0,100540.0,0.149194]
[1737953846986,1.0994866,100550.0,100540.0,0.149194]
[1737953847190,1.0984866,100550.0,100540.0,0.149194]
[1737953847594,1.0994866,100550.0,100540.0,0.149194]
[1737953848227,1.0666866,100550.0,100540.0,0.149194]
[1737953848426,0.9666866,100550.0,100540.0,0.149194]
[1737953848569,0.9994866,100550.0,100540.0,0.149194]
[1737953850783,0.90213931,100550.0,100540.0,0.149194]
[1737953851205,0.9994866,100550.0,100540.0,0.149194]
[1737953853288,0.65213931,100550.0,100540.0,0.2750628]
[1737953853494,0.60233931,100550.0,100540.0,0.2750628]
[1737953853704,0.60233931,100550.0,100540.0,0.8166628]
[1737953853861,0.5497715,100550.0,100540.0,0.91401009]
[1737953855313,0.5497715,100550.0,100540.0,0.91430724]
[1737953856784,0.5497715,100550.0,100540.0,0.92408521]
[1737953856983,0.5653508,100550.0,100540.0,0.92408521]
[1737953857198,0.5653508,100550.0,100540.0,0.9550804]
[1737953857980,0.5497715,100550.0,100540.0,0.9550804]
[1737953858577,0.5497715,100550.0,100540.0,0.19026431]
[1737953858791,0.77711879,100550.0,100540.0,0.14949115]
[1737953859552,0.87711879,100550.0,100540.0,0.14949115]
[1737953860978,1.02711879,100550.0,100540.0,0.14949115]
[1737953867074,1.03611879,100550.0,100540.0,0.14949115]
[1737953869977,1.16198759,100550.0,100540.0,0.14949115]
[1737953871411,1.03611879,100550.0,100540.0,0.14949115]
[1737953872542,0.93611879,100550.0,100540.0,0.14949115]
[1737953872703,1.13611879,100550.0,100540.0,0.14949115]
[1737953873637,1.12711879,100550.0,100540.0,0.14949115]
[1737953873835,1.03611879,100550.0,100540.0,0.14949115]
[1737953875302,1.02711879,100550.0,100540.0,0.14949115]
[1737953875597,1.03611879,100550.0,100540.0,0.14949115]
[1737953877078,0.9297715,100550.0,100540.0,0.14949115]
[1737953877305,0.9387315,100550.0,100540.0,0.14949115]
[1737953879585,0.7887315,100550.0,100540.0,0.14949115]
[1737953882691,0.88607879,100550.0,100540.0,0.14949115]
[1737953882894,0.78607879,100550.0,100540.0,0.14949115]
[1737953883879,0.6797715,100550.0,100540.0,0.14949115]
[1737953884084,0.5497715,100550.0,100540.0,0.81695995]
[1737953885967,0.54970307,100550.0,100540.0,0.81695995]
[1737953886195,0.54970307,100550.0,100540.0,0.83651832]
[1737953886869,0.54970307,100550.0,100540.0,0.84628512]
[1737953887191,0.54970307,100550.0,100540.0,0.40203241]
[1737953887363,0.54970307,100550.0,100540.0,0.66836528]
[1737953888484,0.54870307,100550.0,100540.0,0.66836528]
[1737953888869,0.54970307,100550.0,100540.0,0.66836528]
[1737953889439,0.54870307,100550.0,100540.0,0.66836528]
[1737953890116,0.54870307,100550.0,100540.0,0.66936528]
[1737953891592,0.54870307,100550.0,100540.0,0.66536528]
[1737953892017,0.54870307,100550.0,100540.0,1.52736528]
[1737953893935,0.51590307,100550.0,100540.0,1.52736528]
[1737953894644,0.51590307,100550.0,100540.0,1.49633241]
[1737953895291,0.51590307,100550.0,100540.0,1.52733063]
[1737953895470,0.51590307,100550.0,100540.0,1.49633241]
[1737953896152,0.51590307,100550.0,100540.0,1.5273264]
[1737953896353,0.51590307,100550.0,100540.0,1.49633241]
[1737953896664,0.51590307,100550.0,100540.0,1.52732261]
[1737953897668,0.51590307,100550.0,100540.0,1.46502261]
[1737953898071,0.51590307,100550.0,100540.0,1.43403241]
[1737953898271,0.43633907,100550.0,100540.0,1.46501845]
[1737953898513,0.41644807,100550.0,100540.0,1.43403241]
[1737953901171,0.41644807,100550.0,100540.0,1.43303241]
[1737953901582,0.43498807,100550.0,100540.0,1.43703241]
[1737953901807,0.43498807,100550.0,100540.0,1.41603241]
[1737953902011,0.43498807,100550.0,100540.0,1.04281632]
[1737953902211,0.43512957,100550.0,100540.0,1.16868512]
[1737953903847,0.48122957,100550.0,100540.0,0.16125795]
[1737953904629,0.48122957,100550.0,100540.0,0.28712675]
[1737953906585,0.56032957,100550.0,100540.0,0.16125795]
[1737953907355,0.56032957,100550.0,100540.0,0.15149115]
[1737953908405,0.56032957,100550.0,100540.0,0.14549115]
[1737953908917,0.56032957,100550.0,100540.0,0.14649115]
[1737953913946,0.65767686,100550.0,100540.0,0.14649115]
[1737953914955,0.65767686,100550.0,100540.0,0.14549115]
[1737953915163,0.75767686,100550.0,100540.0,0.14549115]
[1737953915369,0.75967686,100550.0,100540.0,0.14549115]
[1737953918594,0.79247686,100550.0,100540.0,0.14549115]
[1737953921468,0.80805971,100550.0,100540.0,0.14549115]
[1737953929715,0.95805971,100550.0,100540.0,0.14549115]
[1737953933291,1.08392851,100550.0,100540.0,0.14949115]
[1737953933731,1.08392851,100550.0,100540.0,0.00029715]
[1737953933929,1.08392851,100550.0,100540.0,0.14949115]
[1737953934411,0.95805971,100550.0,100540.0,0.14949115]
[1737953935330,0.96796721,100550.0,100540.0,0.14949115]
[1737953935532,1.06356721,100550.0,100540.0,0.14949115]
[1737953939515,1.06356721,100550.0,100540.0,0.00029715]
[1737953939711,1.4459623,100550.0,100540.0,0.00029715]
[1737953939931,1.34861501,100550.0,100540.0,0.00029715]
[1737953940795,1.73033241,100550.0,100540.0,0.00029715]
[1737953941000,1.72833241,100550.0,100540.0,0.00029715]
[1737953941157,1.69553241,100550.0,100540.0,0.00029715]
[1737953941495,0.01,100530.0,100520.0,0.00029715]
[1737953941701,1.09968576,100530.0,100520.0,0.00029715]
[1737953941922,1.68503256,100530.0,100520.0,0.00029715]
[1737953942351,1.40133496,100530.0,100520.0,0.00029715]
[1737953942545,0.89229536,100530.0,100520.0,0.14952115]
[1737953942750,1.05150436,100530.0,100520.0,0.00029715]
[1737953942964,1.02816416,100530.0,100520.0,0.14952115]
[1737953943167,1.02816416,100530.0,100520.0,0.00029715]
[1737953943368,0.90229536,100530.0,100520.0,0.00029715]
[1737953943570,0.89229536,100530.0,100520.0,0.14952115]
[1737953943771,0.89229536,100530.0,100520.0,0.14914659]
[1737953943928,0.90529536,100530.0,100520.0,0.15014659]
[1737953944131,1.00529536,100530.0,100520.0,0.15014659]
[1737953944332,0.99229536,100530.0,100520.0,0.14914659]
[1737953944612,1.09229536,100530.0,100520.0,0.14914659]
[1737953944822,1.09346416,100530.0,100520.0,0.15014659]
[1737953945026,1.09346416,100530.0,100510.0,0.348205]
[1737953945027,0.2316,100510.0,100500.0,0.149244]
[1737953945209,0.76393536,100510.0,100500.0,0.149244]
[1737953945427,0.79673536,100510.0,100500.0,0.149244]
[1737953945626,0.81513536,100510.0,100500.0,0.149244]
[1737953947607,0.81913536,100510.0,100500.0,0.149244]
[1737953947802,0.82113536,100510.0,100500.0,0.149244]
[1737953948030,0.72378807,100510.0,100500.0,0.149244]
[1737953949678,0.72378807,100510.0,100500.0,0.14954115]
[1737953953742,0.92113536,100510.0,100500.0,0.14954115]
[1737953955845,0.82113536,100510.0,100500.0,0.14954115]
[1737953961404,0.57378807,100510.0,100500.0,0.27540995]
[1737953961682,0.57378807,100510.0,100500.0,0.33770995]
[1737953961893,0.57378807,100510.0,100500.0,0.14954115]
[1737953962227,0.47378807,100510.0,100500.0,0.14954115]
[1737953962433,0.74993536,100510.0,100500.0,0.14954115]
[1737953964321,0.71713536,100510.0,100500.0,0.14954115]
[1737953964501,0.74993536,100510.0,100500.0,0.14954115]
[1737953966873,0.57378807,100510.0,100500.0,0.14954115]
[1737953967842,0.56778807,100510.0,100500.0,0.14954115]
[1737953968049,0.66513536,100510.0,100500.0,0.14954115]
[1737953968248,0.67113536,100510.0,100500.0,0.14954115]
[1737953968447,0.77113536,100510.0,100500.0,0.14954115]
[1737953968652,0.76913536,100510.0,100500.0,0.14954115]
[1737953969061,0.77113536,100510.0,100500.0,0.14954115]
[1737953969469,0.76713536,100510.0,100500.0,0.14954115]
[1737953970031,0.77113536,100510.0,100500.0,0.14954115]
[1737953971923,0.89533536,100510.0,100500.0,0.14954115]
[1737953982202,0.57378807,100510.0,100500.0,0.14954115]
[1737953982410,0.58270807,100510.0,100500.0,0.14954115]
[1737953983818,0.57378807,100510.0,100500.0,0.14954115]
[1737953983943,0.58270807,100510.0,100500.0,0.14954115]
[1737953991460,0.58191949,100510.0,100500.0,0.14954115]
[1737953993038,0.57299949,100510.0,100500.0,0.14954115]
[1737953995280,0.58191949,100510.0,100500.0,0.14954115]
[1737953996140,0.54911949,100510.0,100500.0,0.14954115]
[1737953996385,0.58191949,100510.0,100500.0,0.14954115]
[1737953998866,0.90706678,100510.0,100500.0,0.14954115]
[1737954000258,0.90706678,100510.0,100500.0,0.14936115]
[1737954001393,0.90706678,100510.0,100480.0,0.199031]
[1737954001394,0.1,100490.0,100480.0,0.199031]
[1737954001595,0.53419949,100490.0,100480.0,0.3248998]
[1737954001828,0.43419949,100490.0,100480.0,0.199031]
[1737954002466,0.43419949,100490.0,100480.0,0.20881809]
[1737954002664,0.43419949,100490.0,100480.0,0.20896686]
[1737954003219,0.43419949,100490.0,100480.0,0.20996686]
[1737954003672,0.43419949,100490.0,100480.0,0.21096686]
[1737954004001,0.65314678,100490.0,100480.0,0.20117977]
[1737954004204,0.90314678,100490.0,100480.0,0.20117977]
[1737954005104,0.81314678,100490.0,100480.0,0.20017977]
[1737954005319,0.81314678,100490.0,100480.0,0.00114877]
[1737954005491,0.93901558,100490.0,100480.0,0.00114877]
[1737954006338,0.93901558,100490.0,100480.0,0.14943177]
[1737954006551,0.80314678,100490.0,100480.0,0.14943177]
[1737954006745,0.90714678,100490.0,100480.0,0.15043177]
[1737954006945,0.90314678,100490.0,100480.0,0.14943177]
[1737954007390,0.90714678,100490.0,100480.0,0.15043177]
[1737954007653,0.91014678,100490.0,100480.0,0.15043177]
[1737954007838,0.90614678,100490.0,100480.0,0.14943177]
[1737954008237,0.91506678,100490.0,100480.0,0.14943177]
[1737954008443,1.22055087,100490.0,100480.0,0.00014877]
[1737954008578,1.57947707,100490.0,100480.0,0.00014877]
[1737954009240,1.58347707,100490.0,100480.0,0.00114877]
[1737954009442,1.59907373,100490.0,100480.0,0.00144613]
[1737954009790,1.62447904,100490.0,100480.0,0.00044613]
[1737954009951,1.65397726,100490.0,100480.0,0.00144613]
[1737954010170,1.64997726,100490.0,100480.0,0.00044613]
[1737954010336,1.64697726,100490.0,100480.0,0.00044613]
[1737954010525,1.62547904,100490.0,100480.0,0.00144613]
[1737954010767,1.65397726,100490.0,100480.0,0.00144613]
[1737954011206,1.65097726,100490.0,100480.0,0.00144613]
[1737954011373,1.46020493,100490.0,100480.0,0.00144613]
[1737954011581,1.46320493,100490.0,100480.0,0.00144613]
[1737954011783,1.00801144,100490.0,100480.0,0.00144613]
[1737954011985,1.00801144,100490.0,100480.0,0.15072913]
[1737954011986,0.83466344,100490.0,100480.0,0.15072913]
[1737954012386,1.01693144,100490.0,100480.0,0.00144613]
[1737954012588,1.48172264,100490.0,100480.0,0.00144613]
[1737954012842,1.47772264,100490.0,100480.0,0.00044613]
[1737954013034,1.57506993,100490.0,100480.0,0.00044613]
[1737954013283,1.58406993,100490.0,100480.0,0.00144613]
[1737954013484,1.57506993,100490.0,100480.0,0.00044613]
[1737954013692,1.57206993,100490.0,100480.0,0.00044613]
[1737954013903,1.11580024,100490.0,100480.0,0.00044613]
[1737954014451,0.99893144,100490.0,100480.0,0.00144613]
[1737954014655,0.99593144,100490.0,100480.0,0.00144613]
[1737954015236,0.92774344,100490.0,100480.0,0.15072913]
[1737954015465,0.93666344,100490.0,100480.0,0.15072913]
[1737954016108,0.93966344,100490.0,100480.0,0.15072913]
[1737954016315,0.66806344,100490.0,100480.0,0.15072913]
[1737954016623,0.66806344,100490.0,100480.0,0.27659793]
[1737954016624,0.46179615,100490.0,100480.0,0.27659793]
[1737954017222,0.45279615,100490.0,100480.0,0.27559793]
[1737954017409,0.44979615,100490.0,100480.0,0.27559793]
[1737954017610,0.45879615,100490.0,100480.0,0.27659793]
[1737954017854,0.45279615,100490.0,100480.0,0.27559793]
[1737954018209,0.45679615,100490.0,100480.0,0.27559793]
[1737954018409,0.45379615,100490.0,100480.0,0.27559793]
[1737954018653,0.45479615,100490.0,100480.0,0.27559793]
[1737954020156,0.45479615,100490.0,100480.0,0.14972913]
[1737954020157,0.55479615,100490.0,100480.0,0.14972913]
[1737954021193,0.55479615,100490.0,100480.0,0.15961047]
[1737954021339,0.55379615,100490.0,100480.0,0.15961047]
[1737954021540,0.55114344,100490.0,100480.0,0.15961047]
[1737954021755,0.55114344,100490.0,100480.0,0.14972913]
[1737954021756,0.70114344,100490.0,100480.0,0.14972913]
[1737954021957,0.54993775,100490.0,100480.0,0.14972913]
[1737954023165,0.44993775,100490.0,100480.0,0.14972913]
[1737954023436,0.44993775,100490.0,100480.0,0.42559793]
[1737954023595,0.45093775,100490.0,100480.0,0.42559793]
[1737954024203,0.45193775,100490.0,100480.0,0.42559793]
[1737954024605,0.45093775,100490.0,100480.0,0.29972913]
[1737954025520,0.45093775,100490.0,100480.0,0.42559793]
[1737954026330,0.45093775,100490.0,100480.0,0.29972913]
[1737954026904,0.45093775,100490.0,100480.0,0.42559793]
[1737954027717,0.45093775,100490.0,100480.0,0.29972913]
[1737954027937,0.45093775,100490.0,100480.0,0.30946672]
[1737954028504,0.45093775,100490.0,100480.0,0.43533552]
[1737954029755,0.45093775,100490.0,100480.0,0.61798281]
[1737954033483,0.44993775,100490.0,100480.0,0.61798281]
[1737954033691,0.35042775,100490.0,100480.0,1.66065161]
[1737954033899,0.35042775,100490.0,100480.0,1.68265161]
[1737954034097,0.29072175,100490.0,100480.0,2.00298461]
[1737954034403,0.25091775,100490.0,100480.0,2.00298461]
[1737954034603,0.25091775,100490.0,100480.0,1.92142061]
[1737954034831,0.25091775,100490.0,100480.0,1.68065161]
[1737954035099,0.25091775,100490.0,100480.0,1.87621261]
[1737954035306,0.25091775,100490.0,100480.0,1.55278281]
[1737954035518,0.25191775,100490.0,100480.0,1.54078281]